[Event "Slovakia Open Piestany-A 2022"]
[Site "Piestany"]
[Date "2022.07.13"]
[Round "4.26"]
[White "Sosovickova, Jana"]
[Black "Delgerdalai, Bayarjavkhlan"]
[Result "0-1"]
[ECO "B90"]
[WhiteElo "1958"]
[BlackElo "2209"]
[Annotator "ChessBase"]
[PlyCount "102"]
[EventDate "2022.07.12"]
[EventType "swiss"]
[EventCountry "SVK"]
[SourceTitle "playchess.com"]
[Source "ChessBase"]
[SourceQuality "1"]
[TimeControl "40/5400+30:1800+30"]

1. e4 {[%emt 0:00:05]} c5 {[%emt 0:00:26]} 2. Nf3 {[%emt 0:00:06]} d6 {[%emt 0:00:08]} 3. d4 {[%emt 0:00:04]} cxd4 {[%emt 0:00:06]} 4. Nxd4 {[%emt 0:00:04]} Nf6 {[%emt 0:00:08]} 5. Nc3 {[%emt 0:00:03]} a6 {[%emt 0:00:04]} 6. Bd3 {[%emt 0:00:14]} e5 {[%emt 0:01:13]} 7. Nde2 {[%emt 0:00:04]} Be7 {[%emt 0:05:11]} 8. O-O {[%emt 0:00:34]} Nc6 {[%emt 0:04:14]} 9. h3 {[%emt 0:07:37]} O-O {[%emt 0:01:51]} 10. f4 {[%emt 0:01:39]} exf4 {[%emt 0:03:34]} 11. Nxf4 {[%emt 0:00:21]} Ne5 {[%emt 0:04:34]} 12. Be2 {[%emt 0:01:04]} Be6 {[%emt 0:07:31]} 13. Nfd5 {[%emt 0:06:36]} Nxd5 {[%emt 0:06:42]} 14. Nxd5 {[%emt 0:05:59]} Rc8 {[%emt 0:04:18]} 15. b3 {[%emt 0:06:51]} Bxd5 {[%emt 0:08:03]} 16. exd5 {[%emt 0:00:27]} Bf6 {[%emt 0:08:40]} 17. Be3 {[%emt 0:11:46]} Ng6 {[%emt 0:02:10]} 18. Rc1 {[%emt 0:04:54]} Re8 {[%emt 0:01:57]} 19. Bf2 {[%emt 0:01:36]} Qa5 {[%emt 0:07:26]} 20. a4 {[%emt 0:01:21]} Qc3 {[%emt 0:03:27]} 21. Bd3 {[%emt 0:02:21]} Nf4 {[%emt 0:04:30]} 22. Qf3 {[%emt 0:06:17]} Nxd3 {[%emt 0:03:05]} 23. Qxd3 {[%emt 0:00:40]} Bg5 {[%emt 0:01:52]} 24. Rce1 {[%emt 0:05:05]} Rxe1 {[%emt 0:01:31]} 25. Rxe1 {[%emt 0:00:38]} Kf8 {[%emt 0:00:03]} 26. Bg3 {[%emt 0:03:16]} Qxd3 {[%emt 0:00:22]} 27. cxd3 {[%emt 0:06:57]} Be7 {[%emt 0:00:30]} 28. Re4 {[%emt 0:00:30]} Rc5 {[%emt 0:06:43]} 29. Rc4 {[%emt 0:00:37]} b5 {[%emt 0:01:04]} 30. axb5 {[%emt 0:01:47]} axb5 {[%emt 0:00:19]} 31. Rxc5 {[%emt 0:00:13]} dxc5 {[%emt 0:00:01]} 32. d6 {[%emt 0:08:51]} Bf6 {[%emt 0:02:02]} 33. Bf2 {[%emt 0:00:10]} Bd4 {[%emt 0:08:11]} 34. Bxd4 {[%emt 0:00:29]} cxd4 {[%emt 0:00:01]} 35. Kf2 {[%emt 0:00:12]} Ke8 {[%emt 0:05:14]} 36. Kf3 {[%emt 0:00:13]} Kd7 {[%emt 0:00:24]} 37. Ke4 {[%emt 0:00:16]} Kxd6 {[%emt 0:00:27]} 38. Kxd4 {[%emt 0:01:46]} h5 {[%emt 0:00:46]} 39. g4 {[%emt 0:08:10]} hxg4 {[%emt 0:00:30]} 40. hxg4 {[%emt 0:00:03]} f6 {[%emt 0:00:28]} 41. b4 {[%emt 0:34:57]} g6 {[%emt 0:01:21]} 42. Ke4 {[%emt 0:00:00]} Ke6 {[%emt 0:03:20]} 43. d4 {[%emt 0:00:00]} f5+ {[%emt 0:01:16]} 44. gxf5+ {[%emt 0:00:00]} gxf5+ {[%emt 0:00:06]} 45. Kf4 {[%emt 0:00:00]} Kd5 {[%emt 0:00:04]} 46. Kxf5 {[%emt 0:00:00]} Kxd4 {[%emt 0:00:02]} 47. Kf4 {[%emt 0:00:00]} Kc3 {[%emt 0:00:10]} 48. Ke3 {[%emt 0:00:00]} Kxb4 {[%emt 0:00:02]} 49. Kd2 {[%emt 0:00:00]} Kb3 {[%emt 0:00:14]} 50. Kc1 {[%emt 0:00:00]} Ka2 {[%emt 0:00:04]} 51. Kc2 {[%emt 0:00:00]} b4 {[%emt 0:00:02]} 0-1

[Event "Slovakia Open Piestany-A 2022"]
[Site "Piestany"]
[Date "2022.07.13"]
[Round "4.27"]
[White "Zdrazil, Patrik"]
[Black "Mizicka, Matus"]
[Result "0-1"]
[ECO "B00"]
[WhiteElo "2103"]
[BlackElo "1915"]
[Annotator "ChessBase"]
[PlyCount "40"]
[EventDate "2022.07.12"]
[EventType "swiss"]
[EventCountry "SVK"]
[SourceTitle "playchess.com"]
[Source "ChessBase"]
[SourceQuality "1"]
[TimeControl "40/5400+30:1800+30"]

1. Nf3 {[%emt 0:00:07]} b6 {[%emt 0:09:54]} 2. e4 {[%emt 0:01:29]} Bb7 {[%emt 0:00:07]} 3. Nc3 {[%emt 0:00:05]} e6 {[%emt 0:00:04]} 4. g3 {[%emt 0:03:22]} d6 {[%emt 0:00:51]} 5. Bg2 {[%emt 0:00:08]} Nd7 {[%emt 0:00:17]} 6. O-O {[%emt 0:00:24]} g6 {[%emt 0:00:09]} 7. d4 {[%emt 0:00:51]} Bg7 {[%emt 0:01:09]} 8. Qe2 {[%emt 0:00:08]} Ne7 {[%emt 0:00:12]} 9. Bg5 {[%emt 0:03:44]} O-O {[%emt 0:00:42]} 10. Rad1 {[%emt 0:01:34]} h6 {[%emt 0:00:24]} 11. Bc1 {[%emt 0:02:11]} a6 {[%emt 0:01:03]} 12. Rfe1 {[%emt 0:02:25]} Kh7 {[%emt 0:01:04]} 13. e5 {[%emt 0:08:16]} Rb8 {[%emt 0:02:55]} 14. h4 {[%emt 0:03:06]} Nf5 {[%emt 0:01:08]} 15. h5 {[%emt 0:04:28]} c5 {[%emt 0:02:25]} 16. dxc5 {[%emt 0:06:29]} bxc5 {[%emt 0:00:40]} 17. exd6 {[%emt 0:09:38]} Bxf3 {[%emt 0:00:24]} 18. Qxf3 {[%emt 0:00:07]} Nd4 {[%emt 0:00:51]} 19. Qd3 {[%emt 0:07:52]} Ne5 {[%emt 0:00:28]} 20. hxg6+ {[%emt 0:00:50]} fxg6 {[%emt 0:00:13]} 0-1

[Event "Slovakia Open Piestany-A 2022"]
[Site "Piestany"]
[Date "2022.07.13"]
[Round "4.28"]
[White "Pennica, Andrea"]
[Black "Aradhya, Garg"]
[Result "0-1"]
[ECO "C55"]
[WhiteElo "1986"]
[BlackElo "2229"]
[Annotator "ChessBase"]
[PlyCount "82"]
[EventDate "2022.07.12"]
[EventType "swiss"]
[EventCountry "SVK"]
[SourceTitle "playchess.com"]
[Source "ChessBase"]
[SourceQuality "1"]
[TimeControl "40/5400+30:1800+30"]

1. e4 {[%emt 0:01:42]} e5 {[%emt 0:00:02]} 2. Nf3 {[%emt 0:00:07]} Nc6 {[%emt 0:00:03]} 3. Bc4 {[%emt 0:00:08]} Nf6 {[%emt 0:00:10]} 4. O-O {[%emt 0:00:07]} Nxe4 {[%emt 0:00:18]} 5. Bd5 {[%emt 0:00:52]} Be7 {[%emt 0:04:10]} 6. c3 {[%emt 0:09:57]} Nf6 {[%emt 0:00:57]} 7. Bxc6 {[%emt 0:00:09]} dxc6 {[%emt 0:00:38]} 8. Nxe5 {[%emt 0:00:10]} O-O {[%emt 0:00:07]} 9. d4 {[%emt 0:00:15]} c5 {[%emt 0:00:50]} 10. Be3 {[%emt 0:01:28]} cxd4 {[%emt 0:07:50]} 11. cxd4 {[%emt 0:00:39]} Nd5 {[%emt 0:04:02]} 12. Nc3 {[%emt 0:00:19]} Be6 {[%emt 0:08:13]} 13. Qe2 {[%emt 0:04:46]} Re8 {[%emt 0:08:37]} 14. f4 {[%emt 0:10:33]} f6 {[%emt 0:05:13]} 15. f5 {[%emt 0:26:19]} Nxe3 {[%emt 0:01:09]} 16. Qxe3 {[%emt 0:00:40]} fxe5 {[%emt 0:06:23]} 17. dxe5 {[%emt 0:00:23]} Bc4 {[%emt 0:06:15]} 18. Rad1 {[%emt 0:01:29]} Bd6 {[%emt 0:06:03]} 19. Rf4 {[%emt 0:02:10]} Rxe5 {[%emt 0:05:19]} 20. Qxe5 {[%emt 0:04:01]} Bxe5 {[%emt 0:00:02]} 21. Rxd8+ {[%emt 0:00:08]} Rxd8 {[%emt 0:00:02]} 22. Rxc4 {[%emt 0:00:09]} Rd2 {[%emt 0:06:48]} 23. Re4 {[%emt 0:13:42]} Bd4+ {[%emt 0:01:08]} 24. Kf1 {[%emt 0:00:15]} Kf7 {[%emt 0:00:19]} 25. Re2 {[%emt 0:10:47]} Bxc3 {[%emt 0:01:15]} 26. bxc3 {[%emt 0:00:02]} Rxe2 {[%emt 0:00:09]} 27. Kxe2 {[%emt 0:00:01]} Kf6 {[%emt 0:00:31]} 28. g4 {[%emt 0:00:10]} h5 {[%emt 0:00:39]} 29. Kf3 {[%emt 0:03:51]} Kg5 {[%emt 0:00:07]} 30. h4+ {[%emt 0:04:21]} Kxh4 {[%emt 0:00:13]} 31. gxh5 {[%emt 0:00:05]} Kxh5 {[%emt 0:00:16]} 32. Kf4 {[%emt 0:00:10]} Kh6 {[%emt 0:00:16]} 33. c4 {[%emt 0:01:11]} c6 {[%emt 0:00:56]} 34. Ke5 {[%emt 0:05:31]} Kg5 {[%emt 0:00:15]} 35. Ke6 {[%emt 0:00:02]} Kf4 {[%emt 0:02:23]} 36. a4 {[%emt 0:01:00]} Ke4 {[%emt 0:01:39]} 37. a5 {[%emt 0:00:47]} b5 {[%emt 0:00:46]} 38. axb6 {[%emt 0:00:18]} axb6 {[%emt 0:00:02]} 39. Kd6 {[%emt 0:00:32]} b5 {[%emt 0:01:23]} 40. c5 {[%emt 0:00:20]} b4 {[%emt 0:00:02]} 41. Kxc6 {[%emt 0:30:10]} b3 {[%emt 0:30:07]} 0-1

[Event "Slovakia Open Piestany-A 2022"]
[Site "Piestany"]
[Date "2022.07.13"]
[Round "4.29"]
[White "Saravanan Durga"]
[Black "Zvarik, Martin"]
[Result "0-1"]
[ECO "E41"]
[WhiteElo "1908"]
[BlackElo "2213"]
[Annotator "ChessBase"]
[PlyCount "109"]
[EventDate "2022.07.12"]
[EventType "swiss"]
[EventCountry "SVK"]
[SourceTitle "playchess.com"]
[Source "ChessBase"]
[SourceQuality "1"]
[TimeControl "40/5400+30:1800+30"]

1. d4 {[%emt 0:00:02]} Nf6 {[%emt 0:03:35]} 2. c4 {[%emt 0:00:07]} e6 {[%emt 0:00:22]} 3. Nc3 {[%emt 0:00:06]} Bb4 {[%emt 0:00:05]} 4. e3 {[%emt 0:00:05]} O-O {[%emt 0:00:08]} 5. Bd3 {[%emt 0:00:04]} c5 {[%emt 0:00:15]} 6. Nf3 {[%emt 0:02:20]} d6 {[%emt 0:00:52]} 7. O-O {[%emt 0:01:35]} Bxc3 {[%emt 0:00:52]} 8. bxc3 {[%emt 0:00:06]} Nc6 {[%emt 0:00:36]} 9. e4 {[%emt 0:07:29]} e5 {[%emt 0:00:35]} 10. d5 {[%emt 0:02:19]} Ne7 {[%emt 0:00:50]} 11. a4 {[%emt 0:11:26]} a5 {[%emt 0:02:09]} 12. Ne1 {[%emt 0:05:34]} Ng6 {[%emt 0:01:23]} 13. g3 {[%emt 0:00:39]} Bh3 {[%emt 0:05:36]} 14. Ng2 {[%emt 0:00:05]} Ne8 {[%emt 0:01:40]} 15. Re1 {[%emt 0:04:43]} f5 {[%emt 0:02:17]} 16. exf5 {[%emt 0:02:27]} Bxf5 {[%emt 0:00:08]} 17. Bxf5 {[%emt 0:20:39]} Rxf5 {[%emt 0:00:11]} 18. h4 {[%emt 0:00:12]} Qf6 {[%emt 0:03:24]} 19. Qc2 {[%emt 0:28:09]} Qf7 {[%emt 0:01:14]} 20. Rb1 {[%emt 0:01:45]} Rb8 {[%emt 0:06:30]} 21. Rb5 {[%emt 0:01:19]} b6 {[%emt 0:12:55]} 22. Be3 {[%emt 0:01:00]} Nf8 {[%emt 0:02:55]} 23. Reb1 {[%emt 0:01:32]} Nd7 {[%emt 0:00:11]} 24. Qe4 {[%emt 0:03:38]} Nc7 {[%emt 0:01:13]} 25. R5b2 {[%emt 0:00:23]} Rf8 {[%emt 0:00:10]} 26. Ne1 {[%emt 0:01:40]} Qg6 {[%emt 0:00:56]} 27. Nd3 {[%emt 0:02:58]} Ne8 {[%emt 0:00:31]} 28. Qg2 {[%emt 0:01:05]} Nef6 {[%emt 0:06:14]} 29. Bg5 {[%emt 0:00:37]} Ng4 {[%emt 0:00:54]} 30. Be3 {[%emt 0:00:50]} Nxe3 {[%emt 0:00:24]} 31. fxe3 {[%emt 0:00:01]} Rf3 {[%emt 0:00:11]} 32. Nf4 {[%emt 0:00:46]} Qg4 {[%emt 0:00:07]} 33. Ne6 {[%emt 0:00:43]} Rxg3 {[%emt 0:00:35]} 34. Nxf8 {[%emt 0:00:10]} Nxf8 {[%emt 0:00:13]} 35. Kh2 {[%emt 0:00:50]} Qxh4+ {[%emt 0:00:27]} 36. Kg1 {[%emt 0:00:03]} Qg5 {[%emt 0:00:33]} 37. Kh2 {[%emt 0:00:12]} Rxg2+ {[%emt 0:00:14]} 38. Rxg2 {[%emt 0:00:04]} Qxe3 {[%emt 0:00:07]} 39. Rxb6 {[%emt 0:00:25]} Ng6 {[%emt 0:01:29]} 40. Rxd6 {[%emt 0:00:29]} e4 {[%emt 0:00:50]} 41. Rd8+ {[%emt 0:31:38]} Kf7 {[%emt 0:31:01]} 42. Rd7+ {[%emt 0:00:00]} Kf6 {[%emt 0:00:00]} 43. Rd6+ {[%emt 0:00:00]} Ke5 {[%emt 0:00:00]} 44. Re6+ {[%emt 0:00:00]} Kf5 {[%emt 0:00:00]} 45. Re8 {[%emt 0:00:00]} Qh6+ {[%emt 0:00:00]} 46. Kg1 {[%emt 0:00:00]} Nh4 {[%emt 0:00:00]} 47. Rf2+ {[%emt 0:00:00]} Nf3+ {[%emt 0:00:00]} 48. Rxf3+ {[%emt 0:00:00]} exf3 {[%emt 0:00:00]} 49. Kf2 {[%emt 0:00:00]} Qh2+ {[%emt 0:00:00]} 50. Ke1 {[%emt 0:00:00]} g5 {[%emt 0:00:00]} 51. Re3 {[%emt 0:00:00]} Kf4 {[%emt 0:00:00]} 52. Re8 {[%emt 0:00:00]} Kg3 {[%emt 0:00:00]} 53. d6 {[%emt 0:00:00]} f2+ {[%emt 0:00:00]} 54. Ke2 {[%emt 0:00:00]} f1=Q+ {[%emt 0:00:00]} 55. Ke3 {[%emt 0:00:00]} 0-1

[Event "Slovakia Open Piestany-A 2022"]
[Site "Piestany"]
[Date "2022.07.13"]
[Round "4.30"]
[White "Skreko, Igor"]
[Black "Soham Datar"]
[Result "1-0"]
[ECO "A58"]
[WhiteElo "2193"]
[BlackElo "2111"]
[Annotator "ChessBase"]
[PlyCount "79"]
[EventDate "2022.07.12"]
[EventType "swiss"]
[EventCountry "SVK"]
[SourceTitle "playchess.com"]
[Source "ChessBase"]
[SourceQuality "1"]
[TimeControl "40/5400+30:1800+30"]

1. d4 {[%emt 0:00:03]} Nf6 {[%emt 0:00:07]} 2. c4 {[%emt 0:00:04]} c5 {[%emt 0:00:05]} 3. d5 {[%emt 0:00:05]} b5 {[%emt 0:00:04]} 4. cxb5 {[%emt 0:00:06]} a6 {[%emt 0:00:03]} 5. bxa6 {[%emt 0:00:08]} g6 {[%emt 0:00:05]} 6. Nc3 {[%emt 0:00:09]} Bxa6 {[%emt 0:00:05]} 7. g3 {[%emt 0:00:12]} d6 {[%emt 0:00:06]} 8. Bg2 {[%emt 0:00:06]} Bg7 {[%emt 0:00:04]} 9. Nf3 {[%emt 0:00:10]} Nbd7 {[%emt 0:00:07]} 10. Rb1 {[%emt 0:00:14]} O-O {[%emt 0:00:36]} 11. O-O {[%emt 0:00:15]} Qc7 {[%emt 0:00:16]} 12. Qc2 {[%emt 0:01:01]} Rfb8 {[%emt 0:01:39]} 13. b3 {[%emt 0:01:09]} Qa5 {[%emt 0:10:08]} 14. Bb2 {[%emt 0:03:52]} Nb6 {[%emt 0:06:38]} 15. Nd2 {[%emt 0:04:40]} Bb7 {[%emt 0:09:02]} 16. e4 {[%emt 0:01:46]} Nfd7 {[%emt 0:00:30]} 17. a4 {[%emt 0:04:22]} Ba6 {[%emt 0:03:38]} 18. Rfd1 {[%emt 0:03:45]} c4 {[%emt 0:05:10]} 19. Ba1 {[%emt 0:07:49]} Qb4 {[%emt 0:25:29]} 20. bxc4 {[%emt 0:03:08]} Qc5 {[%emt 0:01:52]} 21. Nb5 {[%emt 0:07:23]} Bxa1 {[%emt 0:02:39]} 22. Rxa1 {[%emt 0:00:17]} Bxb5 {[%emt 0:02:43]} 23. axb5 {[%emt 0:00:09]} Rxa1 {[%emt 0:04:38]} 24. Rxa1 {[%emt 0:00:08]} Ne5 {[%emt 0:01:09]} 25. Bf1 {[%emt 0:01:17]} Rc8 {[%emt 0:02:01]} 26. Rc1 {[%emt 0:05:02]} Qa3 {[%emt 0:04:36]} 27. Qc3 {[%emt 0:04:08]} Qa7 {[%emt 0:00:43]} 28. Kg2 {[%emt 0:01:37]} f5 {[%emt 0:00:42]} 29. Qd4 {[%emt 0:01:31]} Qa2 {[%emt 0:05:56]} 30. exf5 {[%emt 0:02:46]} gxf5 {[%emt 0:00:30]} 31. Qxb6 {[%emt 0:08:38]} Qxd2 {[%emt 0:00:11]} 32. Qe3 {[%emt 0:00:09]} Qb2 {[%emt 0:00:49]} 33. Qg5+ {[%emt 0:02:42]} Ng6 {[%emt 0:02:09]} 34. Re1 {[%emt 0:01:55]} Rf8 {[%emt 0:01:31]} 35. Bd3 {[%emt 0:03:24]} Qc3 {[%emt 0:01:19]} 36. Re3 {[%emt 0:00:08]} f4 {[%emt 0:01:33]} 37. gxf4 {[%emt 0:00:26]} Rxf4 {[%emt 0:02:49]} 38. Bxg6 {[%emt 0:00:55]} Rxf2+ {[%emt 0:00:06]} 39. Kxf2 {[%emt 0:00:19]} Qd2+ {[%emt 0:00:03]} 40. Kg3 {[%emt 0:00:53]} 1-0

[Event "Slovakia Open Piestany-A 2022"]
[Site "Piestany"]
[Date "2022.07.13"]
[Round "4.31"]
[White "Chlpik, Martin"]
[Black "Michelle Catherina, P."]
[Result "0-1"]
[ECO "E29"]
[WhiteElo "2236"]
[BlackElo "2141"]
[Annotator "ChessBase"]
[PlyCount "58"]
[EventDate "2022.07.12"]
[EventType "swiss"]
[EventCountry "SVK"]
[SourceTitle "playchess.com"]
[Source "ChessBase"]
[SourceQuality "1"]
[TimeControl "40/5400+30:1800+30"]

1. d4 {[%emt 0:00:41]} Nf6 {[%emt 0:02:24]} 2. c4 {[%emt 0:00:13]} e6 {[%emt 0:00:07]} 3. Nc3 {[%emt 0:00:05]} Bb4 {[%emt 0:00:07]} 4. a3 {[%emt 0:00:04]} Bxc3+ {[%emt 0:00:12]} 5. bxc3 {[%emt 0:00:06]} c5 {[%emt 0:00:53]} 6. e3 {[%emt 0:00:09]} Nc6 {[%emt 0:02:31]} 7. Bd3 {[%emt 0:00:50]} b6 {[%emt 0:02:26]} 8. Ne2 {[%emt 0:00:08]} O-O {[%emt 0:02:07]} 9. O-O {[%emt 0:00:11]} Ba6 {[%emt 0:03:37]} 10. Ng3 {[%emt 0:12:21]} d6 {[%emt 0:05:46]} 11. Qe2 {[%emt 0:07:23]} Rc8 {[%emt 0:02:12]} 12. Bb2 {[%emt 0:00:17]} Na5 {[%emt 0:04:33]} 13. Rac1 {[%emt 0:01:20]} Re8 {[%emt 0:06:14]} 14. e4 {[%emt 0:05:39]} cxd4 {[%emt 0:12:43]} 15. cxd4 {[%emt 0:00:09]} e5 {[%emt 0:01:18]} 16. Nf5 {[%emt 0:14:04]} Nb3 {[%emt 0:08:28]} 17. Qe3 {[%emt 0:10:17]} Nxc1 {[%emt 0:08:12]} 18. Rxc1 {[%emt 0:00:02]} Nh5 {[%emt 0:03:06]} 19. g3 {[%emt 0:03:19]} h6 {[%emt 0:06:42]} 20. Be2 {[%emt 0:00:41]} Nf6 {[%emt 0:01:17]} 21. dxe5 {[%emt 0:02:08]} dxe5 {[%emt 0:10:27]} 22. Rd1 {[%emt 0:10:37]} Qc7 {[%emt 0:00:20]} 23. f4 {[%emt 0:10:51]} exf4 {[%emt 0:04:07]} 24. Qf3 {[%emt 0:00:09]} Re6 {[%emt 0:07:48]} 25. gxf4 {[%emt 0:06:54]} Nxe4 {[%emt 0:01:09]} 26. Kh1 {[%emt 0:01:44]} Bb7 {[%emt 0:00:31]} 27. Rd5 {[%emt 0:00:03]} Nd2 {[%emt 0:02:19]} 28. Qg3 {[%emt 0:11:45]} Rg6 {[%emt 0:00:14]} 29. Qe3 {[%emt 0:00:23]} Bxd5+ {[%emt 0:01:37]} 0-1

[Event "Slovakia Open Piestany-A 2022"]
[Site "Piestany"]
[Date "2022.07.15"]
[Round "5.1"]
[White "Kozak, Antoni"]
[Black "Omelja, Artem"]
[Result "1/2-1/2"]
[ECO "A06"]
[WhiteElo "2475"]
[BlackElo "2478"]
[Annotator "ChessBase"]
[PlyCount "204"]
[EventDate "2022.07.12"]
[EventType "swiss"]
[EventCountry "SVK"]
[SourceTitle "playchess.com"]
[Source "ChessBase"]
[SourceQuality "1"]
[TimeControl "40/5400+30:1800+30"]

1. Nf3 {[%emt 0:06:33]} d5 {[%emt 0:00:38]} 2. e3 {[%emt 0:00:06]} c5 {[%emt 0:00:06]} 3. b3 {[%emt 0:00:10]} Nc6 {[%emt 0:00:11]} 4. Bb5 {[%emt 0:01:33]} Bd7 {[%emt 0:00:09]} 5. O-O {[%emt 0:09:00]} e6 {[%emt 0:01:01]} 6. Bb2 {[%emt 0:00:20]} Nf6 {[%emt 0:00:24]} 7. c4 {[%emt 0:01:51]} a6 {[%emt 0:01:45]} 8. Bxc6 {[%emt 0:00:25]} Bxc6 {[%emt 0:00:08]} 9. Ne5 {[%emt 0:00:02]} Rc8 {[%emt 0:00:11]} 10. d3 {[%emt 0:01:14]} Be7 {[%emt 0:00:51]} 11. Qe2 {[%emt 0:05:05]} O-O {[%emt 0:00:28]} 12. Nxc6 {[%emt 0:01:30]} Rxc6 {[%emt 0:00:08]} 13. e4 {[%emt 0:01:21]} d4 {[%emt 0:08:32]} 14. e5 {[%emt 0:06:24]} Nd7 {[%emt 0:00:41]} 15. Nd2 {[%emt 0:00:55]} f5 {[%emt 0:03:54]} 16. exf6 {[%emt 0:00:25]} gxf6 {[%emt 0:00:13]} 17. f4 {[%emt 0:02:29]} f5 {[%emt 0:00:12]} 18. Rae1 {[%emt 0:08:17]} Bf6 {[%emt 0:01:06]} 19. Kh1 {[%emt 0:07:41]} Kh8 {[%emt 0:40:01]} 20. a3 {[%emt 0:04:58]} a5 {[%emt 0:01:11]} 21. g4 {[%emt 0:09:21]} Rb6 {[%emt 0:00:40]} 22. Rg1 {[%emt 0:03:45]} Qc7 {[%emt 0:01:05]} 23. Qf3 {[%emt 0:03:21]} Qc6 {[%emt 0:04:02]} 24. Qxc6 {[%emt 0:01:17]} Rxc6 {[%emt 0:00:08]} 25. b4 {[%emt 0:03:44]} axb4 {[%emt 0:00:49]} 26. axb4 {[%emt 0:00:02]} Ra6 {[%emt 0:00:28]} 27. Nb3 {[%emt 0:02:20]} cxb4 {[%emt 0:04:49]} 28. Bxd4 {[%emt 0:03:42]} fxg4 {[%emt 0:09:53]} 29. Bxf6+ {[%emt 0:02:44]} Rxf6 {[%emt 0:01:11]} 30. Rxg4 {[%emt 0:00:18]} Ra3 {[%emt 0:00:29]} 31. Rb1 {[%emt 0:02:41]} e5 {[%emt 0:02:30]} 32. fxe5 {[%emt 0:00:49]} Nxe5 {[%emt 0:00:07]} 33. Rg3 {[%emt 0:03:09]} Rf2 {[%emt 0:06:20]} 34. Re1 {[%emt 0:01:37]} Ng6 {[%emt 0:09:26]} 35. d4 {[%emt 0:01:30]} Rb2 {[%emt 0:01:35]} 36. Ree3 {[%emt 0:03:06]} Raa2 {[%emt 0:01:34]} 37. d5 {[%emt 0:00:24]} Rxh2+ {[%emt 0:00:06]} 38. Kg1 {[%emt 0:00:02]} Rhb2 {[%emt 0:00:06]} 39. Re1 {[%emt 0:00:25]} Ra3 {[%emt 0:01:14]} 40. d6 {[%emt 0:01:39]} Rbxb3 {[%emt 0:00:48]} 41. Rxb3 {[%emt 0:31:51]} Rxb3 {[%emt 0:30:06]} 42. d7 {[%emt 0:00:08]} Rd3 {[%emt 0:00:12]} 43. Re8+ {[%emt 0:00:05]} Kg7 {[%emt 0:00:06]} 44. d8=Q {[%emt 0:00:03]} Rxd8 {[%emt 0:00:06]} 45. Rxd8 {[%emt 0:00:02]} Ne5 {[%emt 0:00:37]} 46. c5 {[%emt 0:02:37]} Kf6 {[%emt 0:00:00]} 47. Rd6+ {[%emt 0:00:00]} Kf5 {[%emt 0:00:00]} 48. Rb6 {[%emt 0:00:00]} Ke4 {[%emt 0:00:00]} 49. Rxb4+ {[%emt 0:00:00]} Kd5 {[%emt 0:00:00]} 50. Rxb7 {[%emt 0:00:00]} Kxc5 {[%emt 0:00:00]} 51. Kf2 {[%emt 0:00:00]} Kd4 {[%emt 0:00:00]} 52. Ke2 {[%emt 0:00:00]} h5 {[%emt 0:00:00]} 53. Rh7 {[%emt 0:00:00]} h4 {[%emt 0:00:00]} 54. Rxh4+ {[%emt 0:00:00]} Kd5 {[%emt 0:00:00]} 55. Ra4 {[%emt 0:00:00]} Nc4 {[%emt 0:00:00]} 56. Ra8 {[%emt 0:00:00]} Kd4 {[%emt 0:00:00]} 57. Rd8+ {[%emt 0:00:00]} Ke4 {[%emt 0:00:00]} 58. Rh8 {[%emt 0:00:00]} Kd4 {[%emt 0:00:00]} 59. Rh4+ {[%emt 0:00:00]} Kd5 {[%emt 0:00:00]} 60. Kd3 {[%emt 0:00:00]} Ne5+ {[%emt 0:00:00]} 61. Kc3 {[%emt 0:00:00]} Nc6 {[%emt 0:00:00]} 62. Kd3 {[%emt 0:00:00]} Ne5+ {[%emt 0:00:00]} 63. Ke3 {[%emt 0:00:00]} Nc4+ {[%emt 0:00:00]} 64. Kf4 {[%emt 0:00:00]} Nd6 {[%emt 0:00:00]} 65. Rh5+ {[%emt 0:00:00]} Kd4 {[%emt 0:00:00]} 66. Rh1 {[%emt 0:00:00]} Kd5 {[%emt 0:00:00]} 67. Rd1+ {[%emt 0:00:00]} Ke6 {[%emt 0:00:00]} 68. Rd3 {[%emt 0:00:00]} Nc4 {[%emt 0:00:00]} 69. Rd4 {[%emt 0:00:00]} Nd6 {[%emt 0:00:00]} 70. Rd1 {[%emt 0:00:00]} Nc4 {[%emt 0:00:00]} 71. Ke4 {[%emt 0:00:00]} Nd6+ {[%emt 0:00:00]} 72. Kd4 {[%emt 0:00:00]} Nf5+ {[%emt 0:00:00]} 73. Kc5 {[%emt 0:00:00]} Ke5 {[%emt 0:00:00]} 74. Re1+ {[%emt 0:00:00]} Kf4 {[%emt 0:00:00]} 75. Kc4 {[%emt 0:00:00]} Nd6+ {[%emt 0:00:00]} 76. Kd4 {[%emt 0:00:00]} Nf5+ {[%emt 0:00:00]} 77. Kd3 {[%emt 0:00:00]} Ng7 {[%emt 0:00:00]} 78. Re7 {[%emt 0:00:00]} Nh5 {[%emt 0:00:00]} 79. Kd4 {[%emt 0:00:00]} Nf6 {[%emt 0:00:00]} 80. Re5 {[%emt 0:00:00]} Ng4 {[%emt 0:00:00]} 81. Re1 {[%emt 0:00:00]} Kf5 {[%emt 0:00:00]} 82. Kd5 {[%emt 0:00:00]} Nf6+ {[%emt 0:00:00]} 83. Kd4 {[%emt 0:00:00]} Ng4 {[%emt 0:00:00]} 84. Rh1 {[%emt 0:00:00]} Nf6 {[%emt 0:00:00]} 85. Rh8 {[%emt 0:00:00]} Ng4 {[%emt 0:00:00]} 86. Kd5 {[%emt 0:00:00]} Nf6+ {[%emt 0:00:00]} 87. Kd4 {[%emt 0:00:00]} Ng4 {[%emt 0:00:08]} 88. Rh5+ {[%emt 0:00:00]} Kf4 {[%emt 0:00:17]} 89. Rh4 {[%emt 0:00:00]} Kf5 {[%emt 0:00:09]} 90. Rh5+ {[%emt 0:00:00]} Kf4 {[%emt 0:00:09]} 91. Ra5 {[%emt 0:00:00]} Nh6 {[%emt 0:01:23]} 92. Ra4 {[%emt 0:00:00]} Ng4 {[%emt 0:00:48]} 93. Kd5+ {[%emt 0:00:00]} Kf5 {[%emt 0:00:14]} 94. Kd6 {[%emt 0:00:00]} Nf6 {[%emt 0:00:26]} 95. Ra5+ {[%emt 0:00:00]} Kf4 {[%emt 0:00:19]} 96. Ke6 {[%emt 0:00:00]} Ng4 {[%emt 0:00:41]} 97. Ra4+ {[%emt 0:00:00]} Kf3 {[%emt 0:00:08]} 98. Kf5 {[%emt 0:00:00]} Ne3+ {[%emt 0:00:10]} 99. Kg5 {[%emt 0:00:00]} Nc2 {[%emt 0:00:26]} 100. Ra3+ {[%emt 0:00:00]} Ne3 {[%emt 0:00:10]} 101. Ra2 {[%emt 0:00:00]} Ke4 {[%emt 0:00:12]} 102. Rc2 {[%emt 0:00:00]} Nxc2 {[%emt 0:00:07]} 1/2-1/2